{"text_format":"1","workbook":"xlsx","n_sheets":1,"sheets":["Sheet1"],"not_rendered":{"charts":0,"images":1,"macros":1,"external_links":0,"defined_names":3,"comments":0,"pivot_tables":0},"unopened":[],"bounds":{"document_bytes":16777216,"sheet_cells":100000,"rows_first":2000,"rows_last":500,"rows_between":2000,"halvings":0,"cell_chars":16384,"cell_head_chars":4096},"cells_cut":0,"cells_raw":0,"read":"whole","date_system":"1900"}

{"sheet":"Sheet1","index":0,"n_rows":27,"n_cols":19,"rows_kept":27,"cut":false,"hidden":false,"merged":[[0,12,5,14]]}
[null,null,null,null,null,null,null,null,null,null,null,"2. pitanje","kako namjestiti formulu da mi iz gornje liste povuče ovakav način prikaza samo datum bez godine da se poveže sa mjesecom u ovom slučaju SIJEČANJ i da povuče pripadajuće ime i slučaj ako su dvije osobe rođene isti dan i mjesec"]
["Redni broj","Naziv","Datum rođenja","Napomena","mesec"]
[1,"Ivan Horvat","1970-05-15","Direktor",{"$f":"IF(NOT(ISBLANK(C3)),MONTH(C3),0)","v":5}]
[2,"Marija Novak","1980-12-25","Blagajnica",{"$f":"IF(NOT(ISBLANK(C4)),MONTH(C4),0)","v":12}]
[3,"Petra Klarić","1994-02-28","Asistentica",2]
[4,"Jakov Jukić","1998-01-08","Asistent",1]
[5,"Jurica Marić","1975-01-08","Vozač",1]
[6,null,null,null,0,null,null,null,null,null,null,"1. pitanje","da li se u padajućem izborniku može namjestiti neka formula da mi izbaci mjesece ili moram negdje sa strane upisati listu kao ovdje"]
[7,null,null,null,0]
[8,null,null,null,0]
[9,null,null,null,0]
[10,null,null,null,null,null,null,null,null,"SIJEČANJ",1,null,null,null,"Redni broj","Naziv","Datum rođenja","Napomena","mesec"]
[null,null,null,"VELJAČA",{"$f":"VLOOKUP(D13,J12:K23,2,FALSE)","v":2},null,null,null,null,"VELJAČA",2,null,null,null,null,null,null,null,{"$f":"VLOOKUP(D13,J12:K23,2,FALSE)","v":2}]
[null,null,{"$f":"IFERROR(VLOOKUP(D14,$B$3:$C$12,2,FALSE),\"\")","v":"1994-02-28"},"Petra Klarić",null,null,null,null,null,"OŽUJAK",3]
[null,null,{"$f":"IFERROR(VLOOKUP(D15,$B$3:$C$12,2,FALSE),\"\")","v":""},null,null,null,null,null,null,"TRAVANJ",4]
[null,null,"",null,null,null,null,null,null,"SVIBANJ",5]
[null,null,"",null,null,null,null,null,null,"LIPANJ",6]
[null,null,"",null,null,null,null,null,null,"SRPANJ",7]
[null,null,"",null,null,null,null,null,null,"KOLOVOZ",8]
[null,null,"",null,null,null,null,null,null,"RUJAN",9]
[null,null,"",null,null,null,null,null,null,"LISTOPAD",10]
[null,null,"",null,null,null,null,null,null,"STUDENI",11]
[null,null,"",null,null,null,null,null,null,"PROSINAC",12]
[null,null,""]
[null,null,""]
[null,null,""]
[null,null,""]